Cogmind - Beta 11 X8 @@@ ROGUE MODE // 2022.01.05 @ 12:12:28 Player: Minty Result: Destroyed by G-34 Mercenary with Small Laser Performance ------------- Evolutions (0) 0 Regions Visited (1) 200 Robots Destroyed (12) 60 Value Destroyed (373) 373 Prototype IDs (0) 0 Alien Tech Used (0) 0 Bonus (0) 0 TOTAL SCORE: 633 Bonus ------- None Cogmind --------- Core Integrity 0/250 Matter 300/300 Energy 230/250 System Corruption 0% Temperature Cool (25) Movement Treading (160) Location -10/Materials Parts ------- > --- POWER (1) -------- Ion Engine > --- PROPULSION (2) --- Light Treads Light Treads > --- UTILITY (2) ------ Small Storage Unit Signal Interpreter > --- WEAPON (2) ------- Medium Laser Medium Laser > --- INVENTORY (8) ---- Light Ion Engine Aluminum Leg Wheel Compact Wheel Heat Sink Small Laser Small Laser Peak State ------------ > --- POWER ------------ Ion Engine > --- PROPULSION ------- Aluminum Leg Aluminum Leg > --- UTILITY ---------- Small Storage Unit Weapon Shielding > --- WEAPON ----------- Medium Laser Assault Rifle > --- INVENTORY -------- Light Ion Engine Light Treads Light Treads Wheel Compact Wheel Medium Laser [Rating: 7] Favorites ----------- Power Ion Engine Engine Ion Engine Propulsion Aluminum Leg Treads Light Treads Leg Aluminum Leg Utility Small Storage Unit Storage Small Storage Unit Processor Signal Interpreter Protection Weapon Shielding Weapon Medium Laser Energy Gun Medium Laser Ballistic Gun Assault Rifle Build | -11 -10 ------- Run | Scr Mat Slots Evolved . | . . Power . | . . Propulsion . | . . Utility . | . . Weapon . | . . Parts Attached 9 | . 9 Power . | . . Engine . | . . Core . | . . Reactor . | . . Propulsion 3 | . 3 Treads 2 | . 2 Leg 1 | . 1 Wheel . | . . Hover . | . . Flight . | . . Utility 2 | . 2 Device . | . . Storage . | . . Processor 1 | . 1 Hackware . | . . Protection 1 | . 1 Artifact . | . . Weapon 4 | . 4 Energy Gun 4 | . 4 Energy Cannon . | . . Ballistic Gun . | . . Ballistic Cannon . | . . Launcher . | . . Special Weapon . | . . Impact Weapon . | . . Slashing Weapon . | . . Piercing Weapon . | . . Special Melee Weapon . | . . Unidentified Prototypes . | . . Parts Lost 1 | . 1 Power . | . . Propulsion 1 | . 1 Utility . | . . Weapon . | . . Highest Loss Streak 1 | . 1 Average Slot Usage (%) 97 | . 97 Engine 14 | . 14 Treads 9 | . 9 Leg 18 | . 18 Storage 14 | . 14 Processor 8 | . 8 Protection 4 | . 4 Energy Gun 24 | . 24 Ballistic Gun 3 | . 3 Naked Turns . | . . Heaviest Build 15 | 14 15 Greatest Support 40 | 20 40 Greatest Overweight (x) 1 | . 1 Average Overweight (x) . | . . Largest Inventory Capacity 8 | 8 8 Average Capacity 8 | 8 8 Most Carried 8 | 6 8 Average Carried 7 | 6 7 Final Capacity 8 | 8 8 Final Carried 7 | 6 7 Class Distribution -------------------- 100% | Mutant Dominant Class ---------------- Mutant | -10/Materials Resources | -11 -10 ----------- Run | Scr Mat Matter Collected 343 | 165 178 Remotely . | . . Salvage Created 494 | . 494 Parts 28 | . 28 Haulers Intercepted 1 | . 1 Recyclers Shooed 1 | . 1 Parts Field Recycled . | . . Retrieved Matter . | . . Parts Self-Destructed . | . . Prevented . | . . Kills | -11 -10 ------- Run | Scr Mat Combat Hostiles Destroyed 10 | . 10 Melee 1 | . 1 Guns 9 | . 9 Classes Destroyed 3 | . 3 Builder 1 | . 1 Hauler 1 | . 1 Grunt 10 | . 10 Best Kill Streak 2 | . 2 Combat Bots Only 2 | . 2 Max Kills in Single Turn 1 | . 1 Gunslinging . | . . Exploded . | . . Melee 1 | . 1 Uniques/NPCs Destroyed . | . . Combat | -11 -10 -------- Run | Scr Mat Damage Taken 792 | . 792 Core 256 | . 256 Absorbed by Shields . | . . Core Remaining (%) 100 | 100 . Volleys Fired 58 | . 58 Largest 2 | . 2 Hottest 100 | . 100 Shots Fired 99 | . 99 Gun 99 | . 99 Cannon . | . . Launcher . | . . Special . | . . Kinetic 19 | . 19 Thermal 80 | . 80 Explosive . | . . Electromagnetic . | . . Robot Hit Streak 16 | . 16 Robot Miss Streak 6 | . 6 Penetration Max . | . . Secondary Targets 2 | . 2 Max Gunslinging Chain 1 | . 1 Shots Hit Robots 59 | . 59 Core Hits 25 | . 25 Critical Kills . | . . Critical Parts Destroyed . | . . Critical Strikes 2 | . 2 Burn 2 | . 2 Melee Attacks . | . . Impact . | . . Slashing . | . . Piercing . | . . Sneak Attacks . | . . Combat Hostiles . | . . Follow-up Attacks . | . . Damage Inflicted 721 | . 721 Guns 706 | . 706 Cannons . | . . Explosions . | . . Melee . | . . Ramming 15 | . 15 Kinetic 102 | . 102 Thermal 604 | . 604 Explosive . | . . Electromagnetic . | . . Impact . | . . Slashing . | . . Piercing . | . . Highest Corruption . | . . Average Corruption . | . . Corruption Purged . | . . Overload Shots . | . . Overflow Damage . | . . Projectiles . | . . Explosions . | . . Melee . | . . Knockbacks . | . . Impact . | . . Kinetic . | . . Secondary . | . . Self-Inflicted Damage . | . . Shots . | . . Rammed 6 | . 6 Targets Rammed 8 | . 8 Kicked 1 | . 1 Crushed 1 | . 1 Highest Temperature 265 | . 265 Average Temperature 77 | . 77 Received Heat Transfer 456 | . 456 Effects 1 | . 1 Interference 1 | . 1 Siege Activations . | . . Robots Corrupted . | . . Combat Hostiles . | . . Parts Fried . | . . Impact Corruptions . | . . Robots Melted . | . . Combat Hostiles . | . . Parts Melted 2 | . 2 Heat Transferred 1748 | . 1748 Parts Sabotaged . | . . Parts Stolen . | . . Parts Stripped . | . . Power Chain Reactions . | . . Missiles Intercepted . | . . Alert | -11 -10 ------- Run | Scr Mat Peak Influence 275 | . 275 Initial . | . . Average 107 | . 107 Maximum Alert Level 1 | . 1 Low Security (%) 91 | 100 91 Level 1 8 | . 8 Level 2 . | . . Level 3 . | . . Level 4 . | . . Level 5 . | . . High Security . | . . Max Security . | . . Squads Dispatched 2 | . 2 Investigation 1 | . 1 Extermination . | . . Reinforcement 1 | . 1 Assault . | . . Garrison . | . . Intercept . | . . Construction Impeded . | . . Haulers Reinforced . | . . Active Scanning Responses . | . . Cargo Convoy Interrupts . | . . Stealth | -11 -10 --------- Run | Scr Mat Distress Signals 1 | . 1 Communications Jammed . | . . Distress Signals . | . . Times Spotted 19 | . 19 Peak Tracking Total 4 | . 4 Tactical Retreats 2 | . 2 Traps | -11 -10 ------- Run | Scr Mat Traps Triggered 1 | . 1 Indirectly . | . . Trap Hack Attempts . | . . Triggered . | . . Disarmed . | . . Reprogrammed 3 | . 3 Reused . | . . Traps Extracted . | . . Installed . | . . Triggered . | . . Machines | -11 -10 ---------- Run | Scr Mat Machines Disabled . | . . Max in Single Turn . | . . Machines Sabotaged . | . . Garrisons Compromised . | . . Overloaded Fab Kills . | . . Hacking | -11 -10 --------- Run | Scr Mat Machines Accessed 3 | . 3 Terminals 3 | . 3 Fabricators . | . . Repair Stations . | . . Recycling Units . | . . Scanalyzers . | . . Garrison Access . | . . Total Hacks 13 | . 13 Successful 5 | . 5 Failed 8 | . 8 Catastrophic 3 | . 3 Database Lockouts . | . . Manual 10 | . 10 Terminals 13 | . 13 Fabricators . | . . Repair Stations . | . . Recycling Units . | . . Scanalyzers . | . . Garrison Access . | . . Terminal Hacks 3 | . 3 Alert Level 1 | . 1 Reprogram Traps 1 | . 1 Reinforcement Status 1 | . 1 Fabricator Hacks . | . . Repair Station Hacks . | . . Recycling Unit Hacks . | . . Scanalyzer . | . . Garrison Access Hacks . | . . Unauthorized Hacks 2 | . 2 Terminals 2 | . 2 Botnet 2 | . 2 Fabricators . | . . Repair Stations . | . . Recycling Units . | . . Scanalyzers . | . . Garrison Access . | . . Data Cores Recovered . | . . Used . | . . Hacking Detections 3 | . 3 Full Trace Events 2 | . 2 Feedback Events . | . . Feedback Blocked . | . . Robot Schematics Acquired . | . . Robots Built . | . . Authchips . | . . Time . | . . Total Robot Build Rating . | . . Part Schematics Acquired . | . . Parts Built . | . . Authchips . | . . Time . | . . Total Part Build Rating . | . . Parts Repaired . | . . Time . | . . Parts Recycled . | . . Recycled Matter . | . . Retrieved Matter . | . . Retrieved Components . | . . Parts Scanalyzed . | . . Part Schematics Acquired . | . . Parts Damaged . | . . Bothacking | -11 -10 ------------ Run | Scr Mat Used RIF Installer . | . . Robots Hacked . | . . Non-combat . | . . Combat . | . . Robot Hacks Applied . | . . Relay Couplers Released . | . . Robots Rewired . | . . Allies Hacked . | . . Hacks Repelled . | . . Allies | -11 -10 -------- Run | Scr Mat Total Allies . | . . Largest Group . | . . Highest-Rated Group . | . . Highest-Rated Ally . | . . Total Orders . | . . Ally Attacks . | . . Total Damage . | . . Kills . | . . Allies Corrupted . | . . Allies Melted . | . . Intel | -11 -10 ------- Run | Scr Mat Robot Analysis Total . | . . Derelict Logs Recovered . | . . Drone Launches . | . . Drone Recoveries . | . . Exploration | -11 -10 ------------- Run | Scr Mat Turns Passed 625 | 3 622 Spaces Moved 330 | 3 327 Core . | . . Treads 102 | . 102 Legs 228 | 3 225 Wheels . | . . Hover . | . . Flight . | . . Fastest Speed 120 | 120 120 Average Speed 132 | 120 132 Slowest Speed 190 | 120 190 Overloaded Moves . | . . Propulsion Burnouts . | . . Robots Hopped . | . . Cave-ins Triggered . | . . Exploration Rate (%) 27 | 3 52 Regions Visited 1 Branch Regions . Pre-discovered Areas . | . . Known Exits Taken . | . . Unknown Exits Taken 1 | 1 . Scrap Searched . | . . Spaces Dug . | . . Terrain Destroyed . | . . Melee . | . . Projectile . | . . AOE . | . . Terrain Rammed . | . . Walls Destroyed . | . . Machines Disabled . | . . Actions | -11 -10 --------- Run | Scr Mat Total 414 | 2 412 Wait 6 | . 6 Move 329 | 2 327 Hop . | . . Pick Up 1 | . 1 Fast Attach 3 | . 3 Attach 1 | . 1 Detach . | . . Swap 5 | . 5 Drop 3 | . 3 Fire 58 | . 58 Melee . | . . Ram . | . . Kick 1 | . 1 Crush 7 | . 7 Escape Stasis . | . . Rewire . | . . Trap . | . . Miscellaneous . | . . Route ------- -11/Scrapyard -10/Materials History --------- Turn | Location | Event 1 | -11/Scrapyard | Discovered new exit (range 1) 4 | -11/Scrapyard | Entered Materials 303 | -10/Materials | Build established: Mutant 353 | -10/Materials | Core integrity fell below 50% 536 | -10/Materials | Core integrity fell below 20% 626 | -10/Materials | Destroyed by G-34 Mercenary with Small Laser Last Messages --------------- 00399_ G-34 Mercenary suffers critical hit (Burn). 00402_ G-34 Mercenary destroyed. 00402_ Switching to secondary target: G-34 Mercenary. 00410_ Overheating: System interference. 00410_ Med. Laser temporarily disabled. 00416_ Acquired 20 matter. 00416_ Aluminum Leg destroyed. 00420_ Acquired 10 matter. 00421_ Slammed into G-34 Mercenary. 00431_ G-34 Mercenary heat short circuits Ion Engine. 00431_ Crushed G-34 Mercenary. 00431_ G-34 Mercenary destroyed. 00499_ K-01 Serf cleans the Terminal. 00522_ G-34 Mercenary suffers critical hit (Burn). 00528_ Aluminum Leg melted. 00528_ G-34 Mercenary destroyed. 00558_ K-01 Serf cleans the Processing Tank. 00568_ Connecting with Terminal... 00593_ Slammed into U-05 Engineer. 00598_ Connecting with Terminal... Map ----- +----------------------------------------------------+ | ?????# """ #?# #??????????????????????? | | ?????# #?# = #??????????????????????? | | ?????# """ #?# #??????????????????????? | | ?????# """ *###=[ #???#??????????????????? | | ?????# """ =+%+ #?? #??????????????????? | | ?????# =###! #? #??????????????????? | | ?????#####+####?# ! #^^^#??????????????????? | | ???????# ##########+### #??????????????????? | | ???????# #??????????????????? | | ???????# #??????????????????? | | ???????# #??????????????????? | | ???????# ###+######+#######?????##########???? | | ???????## ## ## #??????# #???? | | ????????# ## T ## !! #??????# """" #???? | | ????????# ## ## !! #??????# """" #???? | | ????????+ ##!= ## #??????# """" #???? | | ????????# ##%= ## #??????#% #???? | | ????????# /!|""" ## ! #??????# """" #???? | | ????????# ## """ ## #??????# !"""" #???? | | ????????# ## """ ## """ !#??????# %"""" #???? | | ????????# ## ## """ #??????# % #???? | | ????????# ## """ ## """ #############+###"" " | | ????????# ## """ ## + "T" + " | | ????????# ## """ ########### ## | | ??####### ## #??######## #????? | | ?? # ##########?# @ g # ##+######## | | ? """"" # # #?# """ # #?? # | | """"" # # """ #?# """ # # | # | | """"" # # """ #?# g""" # """ / # | | + + """ #?# + """ # # | | """"" # # #?# # """ ########### | | ! """"" # # """ #?###+#### """ # ???????? | | ? """"" # # """ ##### """ # = ??????? | | ?? # # """ + # ???? | | ??####### # ##### % # """ ???? | | ######### ##########???########T## #""""" ???? | | """ # #???????????????????#### #""""" ??? | | T"" """ # #??????????????????????# #""""" #? | | """ + #??????????????????????# # """ #? | | """ # #??????????????######### / #? | | # #??????????????? #= ##########? | | *![ # #???????????????"" """ #!! #?????????? | | #####/### #???????????????"" """ #%!!#?????????? | | ???# %% #???????????????"" """ +!! ####??????? | | ???# #????????????# #= #??????? | | ?? + #????????????# # #??????? | | ? # #????????????# # #??????? | | ** # #????????????# # #??????? | | **?# ???????????########### #??????? | | * ?+ ???????????????????# #??????? | +----------------------------------------------------+ Best States ------------- Heat Dissipation 25 Energy Generation 10 Energy Capacity 250 Matter Stores 300 Matter Capacity 300 Sight Range 16 Terrain Scan Density 10 Weapon Shielding 33 Evasion (%) 55 Recoil Reduction 2 Item Schematics ----------------- None Robot Schematics ------------------ None Fabricated ------------ Nothing Alien Tech Used ----------------- None Achievements -------------- None Challenges ------------ None Game ------ Seed BiocellImpulseMegatreads Manual? 0 Play Time 00:05:56 Cumulative 351.4 hours Start 2022.01.05 @ 12:07:29 End 2022.01.05 @ 12:12:28 Sessions 1 Manual Loads 0 Difficulty Rogue Special Mode None Game No. 254 Rogue 80 Adventurer 61 Explorer 113 Win Type - Total 19 Types 17/0/1/0/0/0/0/1/0 Lore% 60 Gallery% 83 Achievement% 66 Wizard Run 0 Options --------- ASCII 0 Keyboard 1 Movement Numpad Keybinds 0 Fullscreen 2 Font 18/X11 Map View 76x50 Tactical HUD 1 Map Filters NONE Filters NONE Steam 1 RUN: 186aef56-1398-4c50-a235-a9d626c97286